Cogmind - Beta 13 @@@ ROGUE MODE // 2024.06.28 @ 22:25:12 Player: Balonith Result: Destroyed by D-53 Grenadier with Mini Grenade Launcher Performance ------------- Evolutions (0) 0 Regions Visited (4) 800 Robots Destroyed (8) 40 Value Destroyed (176) 176 Prototype IDs (1) 20 Alien Tech Used (0) 0 Bonus (0) 0 TOTAL SCORE: 1036 Bonus ------- None Cogmind --------- Core Integrity 0/250 Matter 244/300 Energy 114/125 System Corruption 0% Temperature Cool (22) Movement Walking (120) Location -9/Mines Parts ------- > --- POWER (1) -------- Light Ion Engine > --- PROPULSION (2) --- Aluminum Leg > --- UTILITY (2) ------ Structural Scanner > --- WEAPON (2) ------- Medium Laser > --- INVENTORY (5) ---- Small Battery (100) Small Battery (100) Decoy Drone Bay (16/16) Peak State ------------ > --- POWER ------------ Light Ion Engine > --- PROPULSION ------- Aluminum Leg Aluminum Leg > --- UTILITY ---------- Decoy Drone Bay > --- WEAPON ----------- Medium Laser Medium Laser > --- INVENTORY -------- High-capacity Storage Unit Small Battery Structural Scanner [Rating: 19] Favorites ----------- Power Light Ion Engine Engine Light Ion Engine Propulsion Aluminum Leg Leg Aluminum Leg Utility Targeting Computer Device Structural Scanner Storage Small Battery Processor Targeting Computer Protection Light Armor Plating Weapon Medium Laser Energy Gun Medium Laser Ballistic Gun Assault Rifle Launcher Grenade Launcher Build | -11 -10 -10 -10 -9 ------- Run | Yrd Mat Min Exi Min Slots Evolved . | . . . . . Power . | . . . . . Propulsion . | . . . . . Utility . | . . . . . Weapon . | . . . . . Parts Attached 16 | 5 3 2 . 6 Power 1 | 1 . . . . Engine 1 | 1 . . . . Core . | . . . . . Reactor . | . . . . . Propulsion 2 | 2 . . . . Treads . | . . . . . Leg 2 | 2 . . . . Wheel . | . . . . . Hover . | . . . . . Flight . | . . . . . Utility 9 | . 2 1 . 6 Device 3 | . . . . 3 Storage 4 | . 1 1 . 2 Processor 1 | . 1 . . . Hackware . | . . . . . Protection 1 | . . . . 1 Artifact . | . . . . . Weapon 4 | 2 1 1 . . Energy Gun 2 | 1 . 1 . . Energy Cannon . | . . . . . Ballistic Gun 1 | 1 . . . . Ballistic Cannon . | . . . . . Launcher 1 | . 1 . . . Special Weapon . | . . . . . Impact Weapon . | . . . . . Slashing Weapon . | . . . . . Piercing Weapon . | . . . . . Special Melee Weapon . | . . . . . Unidentified Prototypes 1 | . . . . 1 Parts Lost 3 | . . . . 3 Power . | . . . . . Propulsion 1 | . . . . 1 Utility 1 | . . . . 1 Weapon 1 | . . . . 1 Highest Loss Streak 3 | . . . . 3 To Critical Strikes . | . . . . . Average Slot Usage (%) 88 | . 78 100 100 88 Engine 14 | . 14 14 14 14 Leg 28 | . 28 28 28 28 Device 3 | . . . . 9 Storage 5 | . . 14 14 4 Processor 7 | . 6 14 14 3 Energy Gun 22 | . 14 23 28 28 Ballistic Gun 1 | . 3 . . . Launcher 4 | . 10 4 . . Naked Turns . | . . . . . Heaviest Build 48 | 7 10 10 8 48 Greatest Support 20 | 20 20 20 20 20 Greatest Overweight (x) 2 | . . . . 2 Average Overweight (x) . | . . . . . Largest Inventory Capacity 20 | 5 5 5 5 20 Average Capacity 5 | 5 5 5 5 5 Most Carried 5 | 1 2 3 3 5 Average Carried 1 | . . 1 3 3 Final Capacity 5 | 5 5 5 5 5 Final Carried 4 | . . 3 3 4 Class Distribution -------------------- 100% | Mutant Dominant Class ---------------- Mutant | -10/Materials Mutant | -10/Mines Mutant | -10/Exiles Mutant | -9/Mines Resources | -11 -10 -10 -10 -9 ----------- Run | Yrd Mat Min Exi Min Matter Collected 345 | 256 42 17 . 30 Remotely . | . . . . . Salvage Created 204 | 31 127 . . 46 Parts 14 | 1 8 . . 5 Haulers Intercepted . | . . . . . Recyclers Shooed . | . . . . . Parts Field Recycled . | . . . . . Retrieved Matter . | . . . . . Parts Self-Destructed . | . . . . . Prevented . | . . . . . Kills | -11 -10 -10 -10 -9 ------- Run | Yrd Mat Min Exi Min Combat Hostiles Destroyed 4 | 1 2 . . 1 Guns 2 | 1 . . . 1 AOE 2 | . 2 . . . Classes Destroyed 4 | 1 2 . . 1 Worker 3 | . 3 . . . Mechanic 1 | . 1 . . . Grunt 3 | 1 2 . . . Sentry 1 | . . . . 1 Best Kill Streak 5 | 1 5 . . 1 Combat Bots Only 2 | 1 2 . . 1 Max Kills in Single Turn 2 | 1 2 . . 1 Gunslinging . | . . . . . Exploded 1 | . 1 . . . Melee . | . . . . . Uniques/NPCs Destroyed . | . . . . . Combat | -11 -10 -10 -10 -9 -------- Run | Yrd Mat Min Exi Min Hostile Shots Fired 46 | 2 17 . . 27 Missed 17 | . 7 . . 10 Damage Taken 661 | 23 128 . . 510 Core 256 | 11 23 . . 222 Absorbed by Shields . | . . . . . Core Remaining (%) 95 | 95 . . . . Volleys Fired 15 | 2 10 . . 3 Largest 2 | 2 2 . . 2 Hottest 100 | 70 80 . . 100 Shots Fired 25 | 4 15 . . 6 Gun 20 | 4 10 . . 6 Cannon . | . . . . . Launcher 5 | . 5 . . . Special . | . . . . . Kinetic 2 | 2 . . . . Thermal 18 | 2 10 . . 6 Explosive 5 | . 5 . . . Electromagnetic . | . . . . . Robot Hit Streak 11 | 3 7 . . 11 Robot Miss Streak 2 | 1 2 . . 1 Penetration Max . | . . . . . Secondary Targets . | . . . . . Shots Hit Robots 17 | 3 9 . . 5 Core Hits 16 | 2 10 . . 4 Critical Kills . | . . . . . Critical Parts Destroyed . | . . . . . Critical Strikes 3 | 1 . . . 2 Burn 3 | 1 . . . 2 Melee Attacks . | . . . . . Impact . | . . . . . Slashing . | . . . . . Piercing . | . . . . . Sneak Attacks . | . . . . . Combat Hostiles . | . . . . . Follow-up Attacks . | . . . . . Damage Inflicted 595 | 36 497 . . 62 Guns 186 | 36 88 . . 62 Cannons . | . . . . . Explosions 409 | . 409 . . . Melee . | . . . . . Ramming . | . . . . . Kinetic 24 | 24 . . . . Thermal 162 | 12 88 . . 62 Explosive 409 | . 409 . . . Electromagnetic . | . . . . . Impact . | . . . . . Slashing . | . . . . . Piercing . | . . . . . Highest Corruption . | . . . . . Average Corruption . | . . . . . Corruption Purged . | . . . . . Corruption Blocked . | . . . . . Overload Shots . | . . . . . Overflow Damage . | . . . . . Projectiles . | . . . . . Explosions . | . . . . . Melee . | . . . . . Knockbacks . | . . . . . Impact . | . . . . . Kinetic . | . . . . . Secondary . | . . . . . Self-Inflicted Damage . | . . . . . Shots . | . . . . . Rammed . | . . . . . Targets Rammed . | . . . . . Kicked . | . . . . . Crushed . | . . . . . Highest Temperature 96 | 30 96 . . 78 Average Temperature 36 | 20 39 . . 38 Received Heat Transfer 105 | 12 75 . . 18 Siege Activations . | . . . . . Robots Corrupted . | . . . . . Combat Hostiles . | . . . . . Parts Fried . | . . . . . Impact Corruptions . | . . . . . Robots Melted . | . . . . . Combat Hostiles . | . . . . . Parts Melted 1 | . . . . 1 Heat Transferred 703 | 111 259 . . 333 Parts Sabotaged . | . . . . . Parts Stolen . | . . . . . Parts Stripped . | . . . . . Power Chain Reactions . | . . . . . Alert | -11 -10 -10 -10 -9 ------- Run | Yrd Mat Min Exi Min Peak Influence 138 | 20 138 53 . 35 Initial 53 | . 13 53 . . Average 29 | 2 59 53 . 2 Maximum Alert Level . | . . . . . Low Security (%) 100 | 100 100 100 . 100 Level 1 . | . . . . . Level 2 . | . . . . . Level 3 . | . . . . . Level 4 . | . . . . . Level 5 . | . . . . . High Security . | . . . . . Max Security . | . . . . . Squads Dispatched 1 | . 1 . . . Investigation . | . . . . . Extermination . | . . . . . Reinforcement 1 | . 1 . . . Assault . | . . . . . Garrison . | . . . . . Intercept . | . . . . . Searches Triggered . | . . . . . Construction Impeded . | . . . . . Haulers Reinforced . | . . . . . Active Scanning Responses . | . . . . . Cargo Convoy Interrupts . | . . . . . Stealth | -11 -10 -10 -10 -9 --------- Run | Yrd Mat Min Exi Min Distress Signals 1 | . 1 . . . Communications Jammed . | . . . . . Distress Signals . | . . . . . Times Spotted 15 | 1 6 . . 8 Peak Tracking Total 8 | 1 5 . . 8 Tactical Retreats 1 | . 1 . . . Traps | -11 -10 -10 -10 -9 ------- Run | Yrd Mat Min Exi Min Traps Triggered . | . . . . . Indirectly . | . . . . . Trap Hack Attempts . | . . . . . Triggered . | . . . . . Disarmed . | . . . . . Reprogrammed . | . . . . . Reused . | . . . . . Traps Extracted . | . . . . . Installed . | . . . . . Triggered . | . . . . . Machines | -11 -10 -10 -10 -9 ---------- Run | Yrd Mat Min Exi Min Machines Disabled 1 | . 1 . . . Max in Single Turn 1 | . 1 . . . Machines Repaired . | . . . . . Machines Dismantled . | . . . . . Machines Sabotaged . | . . . . . Overloaded Fab Kills . | . . . . . Hacking | -11 -10 -10 -10 -9 --------- Run | Yrd Mat Min Exi Min Machines Accessed 1 | . . 1 . . Terminals . | . . . . . Fabricators . | . . . . . Repair Stations . | . . . . . Recycling Units . | . . . . . Scanalyzers . | . . . . . Garrison Access . | . . . . . Total Hacks 1 | . . 1 . . Successful 1 | . . 1 . . Failed . | . . . . . Catastrophic . | . . . . . Database Lockouts . | . . . . . Manual . | . . . . . Terminals . | . . . . . Fabricators . | . . . . . Repair Stations . | . . . . . Recycling Units . | . . . . . Scanalyzers . | . . . . . Garrison Access . | . . . . . Terminal Hacks 1 | . . 1 . . Open Door 1 | . . 1 . . Fabricator Hacks . | . . . . . Repair Station Hacks . | . . . . . Recycling Unit Hacks . | . . . . . Scanalyzer . | . . . . . Garrison Access Hacks . | . . . . . Unauthorized Hacks . | . . . . . Terminals . | . . . . . Fabricators . | . . . . . Repair Stations . | . . . . . Recycling Units . | . . . . . Scanalyzers . | . . . . . Garrison Access . | . . . . . Data Cores Recovered . | . . . . . Used . | . . . . . Hacking Detections . | . . . . . Full Trace Events . | . . . . . Feedback Events . | . . . . . Feedback Blocked . | . . . . . Robot Schematics Acquired . | . . . . . Robots Built . | . . . . . Authchips . | . . . . . Time . | . . . . . Total Robot Build Rating . | . . . . . Part Schematics Acquired . | . . . . . Parts Built . | . . . . . Authchips . | . . . . . Time . | . . . . . Total Part Build Rating . | . . . . . Parts Repaired . | . . . . . Time . | . . . . . Parts Recycled . | . . . . . Recycled Matter . | . . . . . Retrieved Matter . | . . . . . Retrieved Components . | . . . . . Parts Scanalyzed . | . . . . . Part Schematics Acquired . | . . . . . Parts Damaged . | . . . . . Bothacking | -11 -10 -10 -10 -9 ------------ Run | Yrd Mat Min Exi Min Used RIF Installer . | . . . . . Robots Hacked . | . . . . . Non-combat . | . . . . . Combat . | . . . . . Robot Hacks Applied . | . . . . . Relay Couplers Released . | . . . . . Fabnet Peak Effective % . | . . . . . Robots Rewired . | . . . . . Allies Hacked . | . . . . . Hacks Repelled . | . . . . . Allies | -11 -10 -10 -10 -9 -------- Run | Yrd Mat Min Exi Min Total Allies . | . . . . . Largest Group . | . . . . . Highest-Rated Group . | . . . . . Highest-Rated Ally . | . . . . . Total Orders . | . . . . . Ally Attacks . | . . . . . Total Damage . | . . . . . Kills . | . . . . . Allies Corrupted . | . . . . . Allies Melted . | . . . . . Intel | -11 -10 -10 -10 -9 ------- Run | Yrd Mat Min Exi Min Robot Analysis Total . | . . . . . Derelict Logs Recovered 2 | . . 2 . . Drone Launches . | . . . . . Drone Recoveries . | . . . . . Exploration | -11 -10 -10 -10 -9 ------------- Run | Yrd Mat Min Exi Min Turns Passed 611 | 94 179 103 38 197 Spaces Moved 450 | 81 122 78 32 137 Core 23 | 23 . . . . Treads . | . . . . . Legs 427 | 58 122 78 32 137 Wheels . | . . . . . Hover . | . . . . . Flight . | . . . . . Fastest Speed 50 | 50 120 120 120 120 Average Speed 117 | 100 120 120 120 124 Slowest Speed 260 | 120 120 120 120 260 Overloaded Moves . | . . . . . Propulsion Burnouts . | . . . . . Robots Hopped . | . . . . . Cave-ins Triggered . | . . . . . Exploration Rate (%) 15 | 5 24 17 8 24 Regions Visited 4 Branch Regions 3 Pre-discovered Areas 2 | . . 2 . . Known Exits Taken . | . . . . . Unknown Exits Taken 4 | 1 1 1 1 . Scrap Searched 2 | . . 1 . 1 Spaces Dug . | . . . . . Terrain Destroyed 41 | . 41 . . . Melee . | . . . . . Projectile . | . . . . . AOE 41 | . 41 . . . Terrain Rammed . | . . . . . Walls Destroyed . | . . . . . Machines Disabled . | . . . . . Actions | -11 -10 -10 -10 -9 --------- Run | Yrd Mat Min Exi Min Total 509 | 88 139 89 31 162 Wait 6 | . 2 3 . 1 Move 446 | 80 121 77 31 137 Hop . | . . . . . Pick Up 8 | 1 1 3 . 3 Fast Attach 12 | 4 2 1 . 5 Attach 4 | 1 1 1 . 1 Detach 9 | . 1 2 . 6 Swap . | . . . . . Drop 9 | . 1 2 . 6 Fire 15 | 2 10 . . 3 Melee . | . . . . . Ram . | . . . . . Kick . | . . . . . Crush . | . . . . . Escape Stasis . | . . . . . Rewire . | . . . . . Trap . | . . . . . Miscellaneous . | . . . . . Route ------- -11/Scrapyard -10/Materials -10/Mines (discovered 2 exits: [*Mat] / [*Exi]) -10/Exiles -9/Mines History --------- Turn | Location | Event 2 | -11/Scrapyard | Met Revision 17 74 | -11/Scrapyard | Discovered new exit (range 8) 95 | -11/Scrapyard | Entered Materials 158 | -10/Materials | Discovered new exit (range 6) 274 | -10/Materials | Entered Mines 326 | -10/Mines | Build established: Mutant 332 | -10/Mines | Found the Drone Emporium 342 | -10/Mines | Found Prototype Device 346 | -10/Mines | Discovered new exit (range 15) 353 | -10/Mines | Learned location of Zion (-7) 370 | -10/Mines | Deemed a non-threat by the Exiles lab entrance 370 | -10/Mines | Discovered new exit (range 5) 377 | -10/Mines | Entered Exiles 399 | -10/Exiles | Discovered new exit (range 14) 415 | -10/Exiles | Entered Mines 467 | -9/Mines | Identified Decoy Drone Bay 570 | -9/Mines | Assembled infested the area 575 | -9/Mines | Assisted by a Guerilla fighting off Assembled 601 | -9/Mines | Core integrity fell below 50% 611 | -9/Mines | Core integrity fell below 20% 612 | -9/Mines | Destroyed by D-53 Grenadier with Mini Grenade Launcher Last Messages --------------- K-01 Serf collects debris. U-05 Engineer destroyed. S-10 Pest destroyed. [Achievement: Crack Shot] Y-45 Defender suffers critical hit (Burn). Heat Sink melted. Y-45 Defender destroyed. K-01 Serf collects debris. QF-40R(h) destroyed. K-01 Serf destroyed. K-01 Serf collects debris. Acquired Lgt. Armor Plating. Machine disabled. K-01 Serf collects debris. Lgt. Armor Plating destroyed. The unstable cave ceiling collapses. Aluminum Leg destroyed. The unstable cave ceiling collapses. Med. Laser destroyed. [Achievement: First Step to Greatness] Map ----- +----------------------------------------------------+ | | | | | | | | | | | ?????????????????????????????????????????????????? | | ?????????????????????????????????????????????????? | | ?????????????????????????????????????????????????? | | ?????????????????????????????????????????????????? | | ????????????????????????? ???????????????????? | | ???????????????????????####### ??????????????????? | | ???????????????????????###" ## ??????????????????? | | ???????????????????????##"" # ??????????????????? | | ???????????????????????##[! + ??????????????????? | | ???????????????????? ####]] + ??????????????????? | | ?????????????????? ####""Y # ??????????????????? | | ?????????????????##### # ## ??????????????????? | | ???????????????##### = # ??????????????????? | | ?????????## ###### * = ## ?????????????????? | | ?????????## #### %d ###?????????????????? | | ?????????## % s ##?????????????????? | | ?????????## "# s ##?????????????????? | | ????????? ???##"# ##?????????????????? | | ???????????????###"# # ##?????????????????? | | ????????????????#### ##?????????????????? | | ????????????????##### @ ###????????????????? | | ?????????????????#### ###????????????????? | | ?????????????????## ### ##????????????????? | | ?????????????????## ##????????????????? | | ?????????????????### ## ##????????????????? | | ?????????????????### ##### ##????????????????? | | ??????????????????## ######## ????????????????? | | ??????????????????## ####???? ##??????????????? | | ??????????????????## ##??????## ##??????????????? | | ??????????????????## ##??????## ##??????????????? | | ??????????????????## ##???????? ##??????????????? | | ??????????????????## ##???????? ##??????????????? | | ??????????????###### ##???????? ##??????????????? | | ??????????????###### ##?????????????????????????? | | ??????????????## ##?????????????????????????? | | ??????????????## #######?????????????????????????? | | ##????????????## #######?????????????????????????? | | #######?????#### ##??????????????????????????????? | | ########????#### ##??????????????????????????????? | | #####??## ##??????????????????????????????? | | #####?## ###??????????????????????????????? | | ##### ###?## ###??????????????????????????????? | | ###### ##?## ##???????????????????????????????? | | ##??### ##### ##???????????????????????????????? | | ##?#### ##### ##???????????????????????????????? | +----------------------------------------------------+ Best States ------------- Heat Dissipation 25 Energy Generation 10 Energy Capacity 225 Matter Stores 300 Matter Capacity 400 Sight Range 16 Terrain Scan Density 10 Evasion (%) 55 Targeting Accuracy 5 Item Schematics ----------------- None Robot Schematics ------------------ None Fabricated ------------ Nothing Alien Tech Used ----------------- None Achievements -------------- Crack Shot First Step to Greatness Risk Taker Tourist Uninvited Guest Challenges ------------ None Game ------ Seed StealthPointyModule Manual? 0 Play Time 00:40:31 Cumulative 0.6 hours Start 2024.06.28 @ 21:37:22 End 2024.06.28 @ 22:25:12 Sessions 1 Manual Loads 0 Difficulty Rogue Special Mode None Game No. 1 Rogue 1 Adventurer 0 Explorer 0 Win Type - Total 0 Types 0/0/0/0/0/0/0/0/0 Lore% 0 Gallery% 1 Achievement% 1 Wizard Run 0 Options --------- Layout 1 ASCII 0 Keyboard 1 Movement Numpad Keybinds 0 Fullscreen 1 Font 24/Crisp Map View 50x35 Zoom Use 0% Tactical HUD 0 Map Filters NONE Filters NONE Steam 1 RUN: d2db4e35-db7b-4e35-8d61-9ea50bc09042